bitfinex/quotes_BTCUSD_20241117
["timestamp","ask_amount","ask_price","bid_price","bid_amount"]
[1731833548022,1.987,90888.0,90887.0,0.00302505]
[1731833548237,1.987,90888.0,90887.0,0.11305105]
[1731833548485,1.987,90888.0,90887.0,0.110026]
[1731833548773,1.987,90888.0,90887.0,0.11304949]
[1731833549276,1.987,90888.0,90887.0,0.2509452]
[1731833549480,1.987,90888.0,90887.0,0.25211976]
[1731833550406,1.987,90888.0,90887.0,0.2509452]
[1731833550622,1.987,90888.0,90887.0,0.25211976]
[1731833550835,1.987,90888.0,90887.0,0.3559452]
[1731833551756,1.987,90888.0,90887.0,0.35711976]
[1731833551995,1.987,90888.0,90887.0,0.3559452]
[1731833552447,1.987,90888.0,90887.0,0.35711976]
[1731833553821,1.97137409,90888.0,90887.0,0.35711976]
[1731833555348,1.97137409,90888.0,90887.0,0.36211976]
[1731833556688,1.97137409,90888.0,90887.0,0.21922405]
[1731833556957,1.97137409,90888.0,90887.0,0.11304949]
[1731833557164,1.96337409,90888.0,90887.0,0.00302349]
[1731833557652,2.07339909,90888.0,90883.0,0.00117456]
[1731833557833,1.96337409,90888.0,90883.0,0.11120456]
[1731833558076,1.96337409,90888.0,90884.0,0.110029]
[1731833558281,1.96337409,90888.0,90886.0,0.110027]
[1731833558493,1.96337409,90888.0,90887.0,0.30070056]
[1731833558711,1.96337409,90888.0,90887.0,0.30219499]
[1731833558972,1.96337409,90888.0,90887.0,0.30336955]
[1731833559405,1.96337409,90888.0,90887.0,0.41125754]
[1731833559632,1.96337409,90888.0,90887.0,0.30219499]
[1731833559868,1.96337409,90888.0,90887.0,0.30336955]
[1731833560088,1.96337409,90888.0,90887.0,0.4124321]
[1731833560623,1.96337409,90888.0,90887.0,0.44609156]
[1731833560840,1.96337409,90888.0,90887.0,0.47791988]
[1731833561103,1.96337409,90888.0,90887.0,0.49674532]
[1731833562259,1.96337409,90888.0,90887.0,0.49791988]
[1731833562501,1.96337409,90888.0,90887.0,0.49674532]
[1731833562996,1.84291658,90888.0,90887.0,0.47674532]
[1731833563229,1.82528162,90888.0,90887.0,0.47674532]
[1731833563662,1.7704253,90888.0,90887.0,0.47791988]
[1731833563887,1.7704253,90888.0,90887.0,0.47674532]
[1731833564376,1.10651515,90888.0,90887.0,0.62282781]
[1731833564603,1.06444987,90888.0,90887.0,0.48175754]
[1731833564818,1.06444987,90888.0,90887.0,0.4619321]
[1731833565028,1.06444987,90888.0,90887.0,0.4819761]
[1731833565689,0.97470043,90888.0,90887.0,0.4856879]
[1731833565915,0.97470043,90888.0,90887.0,0.50251334]
[1731833566339,0.86172798,90888.0,90887.0,0.50251334]
[1731833566756,0.84479551,90888.0,90887.0,0.50251334]
[1731833566973,0.84479551,90888.0,90887.0,0.5056879]
[1731833567192,0.80918935,90888.0,90887.0,0.50251334]
[1731833567416,0.80918935,90888.0,90887.0,0.5056879]
[1731833567640,0.80918935,90888.0,90887.0,0.4856879]
[1731833569021,0.2615327,90888.0,90887.0,0.62358361]
[1731833569239,0.2615327,90888.0,90887.0,0.51959166]
[1731833570139,0.2615327,90888.0,90887.0,0.60286756]
[1731833570364,0.2615327,90888.0,90887.0,0.60486756]
[1731833570623,0.2615327,90888.0,90887.0,0.62486756]
[1731833570846,0.2615327,90888.0,90887.0,0.53355761]
[1731833571058,0.2615327,90888.0,90887.0,0.64358361]
[1731833571760,0.2615327,90888.0,90887.0,0.67748737]
[1731833571962,0.18272395,90888.0,90887.0,0.67748737]
[1731833572410,0.17472395,90888.0,90887.0,0.67748737]
[1731833573577,0.17472395,90888.0,90887.0,0.71304493]
[1731833574254,0.000856,90891.0,90890.0,0.22319756]
[1731833574479,0.000856,90891.0,90890.0,0.34226011]
[1731833574694,0.16560302,90912.0,90911.0,0.12117156]
[1731833574695,0.01750539,90912.0,90911.0,0.12117156]
[1731833574912,0.01750539,90912.0,90911.0,0.33023411]
[1731833575134,0.00011134,90912.0,90911.0,0.33023411]
[1731833575353,0.00011134,90912.0,90911.0,0.33280606]
[1731833575577,0.0008565,90914.0,90913.0,0.119995]
[1731833575827,0.0008565,90914.0,90913.0,0.23023211]
[1731833576269,0.0008565,90914.0,90913.0,0.23280406]
[1731833576478,0.0008565,90914.0,90913.0,0.22780406]
[1731833576753,0.0008565,90914.0,90913.0,0.23280406]
[1731833578132,0.35879555,90937.0,90913.0,0.23280406]
[1731833578133,0.16549168,90931.0,90917.0,0.00617456]
[1731833578351,0.16549168,90931.0,90919.0,0.11116256]
[1731833578827,0.0008565,90937.0,90919.0,0.11116256]
[1731833579033,0.109969,90934.0,90919.0,0.11373451]
[1731833579288,0.0008565,90937.0,90919.0,0.11373451]
[1731833579504,0.10997,90934.0,90919.0,0.11373451]
[1731833579742,0.0482,90927.0,90919.0,0.00257195]
[1731833579970,0.0482,90927.0,90926.0,0.11115356]
[1731833580401,0.0482,90927.0,90926.0,0.11372551]
[1731833581070,0.1271,90927.0,90926.0,0.00374651]
[1731833581534,0.1271,90927.0,90926.0,0.11255095]
[1731833581769,0.1271,90927.0,90926.0,0.11372551]
[1731833582014,0.1271,90927.0,90926.0,0.00374651]
[1731833582251,0.1271,90927.0,90926.0,0.11372551]
[1731833582959,0.237078,90927.0,90926.0,0.00257195]
[1731833583413,0.219953,90929.0,90920.0,0.00117456]
[1731833583680,0.0789,90933.0,90924.0,0.00117456]
[1731833583893,0.1271,90931.0,90924.0,0.109981]
[1731833584109,0.1271,90931.0,90927.0,0.00117456]
[1731833585240,0.237074,90931.0,90928.0,0.00257208]
[1731833585470,0.1271,90931.0,90928.0,0.00257208]
[1731833585684,0.12614981,90931.0,90930.0,0.00117456]
[1731833585898,0.12614981,90931.0,90929.0,0.00256936]
[1731833586140,0.12614981,90931.0,90928.0,0.00117456]
[1731833586349,0.12614981,90931.0,90930.0,0.11254263]
[1731833586569,0.12614981,90931.0,90929.0,0.00256936]
[1731833586813,0.12614981,90931.0,90930.0,0.27920887]
[1731833587041,0.12614981,90931.0,90930.0,0.11254263]
[1731833587257,0.11814981,90931.0,90930.0,0.11254263]
[1731833589380,0.0008565,90937.0,90936.0,0.109967]
[1731833589632,0.0008565,90937.0,90936.0,0.11114156]
[1731833589847,0.0008565,90937.0,90936.0,0.11369758]
[1731833590282,0.0008565,90937.0,90936.0,0.22776013]
[1731833590498,0.0008565,90937.0,90936.0,0.24276013]
[1731833592302,0.0008565,90937.0,90936.0,0.24271985]
[1731833593855,0.0008565,90937.0,90936.0,0.24154529]
[1731833594128,0.0008565,90937.0,90936.0,0.24271985]
[1731833594385,0.0008565,90937.0,90936.0,0.24154529]
[1731833594674,0.0008565,90937.0,90936.0,0.23654529]
[1731833594888,0.0008565,90937.0,90936.0,0.24271985]
[1731833595320,0.0008565,90937.0,90936.0,0.1236573]
[1731833596038,0.0778565,90937.0,90936.0,0.01255602]
[1731833596285,2.5e-07,90954.0,90936.0,0.01255602]
[1731833596517,0.219916,90944.0,90936.0,0.01373058]
[1731833596737,0.04537095,90949.0,90936.0,0.01117456]
[1731833596981,0.219903,90949.0,90937.0,0.00240964]
[1731833597207,0.36327353,90948.0,90947.0,0.16549168]
[1731833597428,0.46600129,90955.0,90938.0,0.00241632]
[1731833597673,0.24604374,90940.0,90936.0,0.01]
[1731833597900,0.13789571,90950.0,90936.0,0.01]
[1731833597901,0.24604374,90938.0,90936.0,0.01]
[1731833598127,0.36329255,90937.0,90936.0,0.01]
[1731833598339,0.47325855,90937.0,90936.0,0.01]
[1731833598780,0.36329255,90937.0,90936.0,0.01]
[1731833599506,0.36329255,90937.0,90936.0,0.119967]
[1731833599772,0.36329255,90937.0,90936.0,0.12114156]
[1731833600007,0.36329255,90937.0,90936.0,0.11114156]
[1731833600244,0.36329255,90937.0,90932.0,0.16549168]
[1731833600493,0.077,90939.0,90938.0,0.11113956]
[1731833600728,0.4404223,90939.0,90938.0,0.00117456]
[1731833600950,0.4404223,90939.0,90938.0,0.11113956]
[1731833601220,0.4404223,90939.0,90934.0,0.219939]
[1731833601440,0.03061253,90927.0,90926.0,0.109979]
[1731833601697,0.03061253,90927.0,90926.0,0.301379]
[1731833601937,0.03061253,90927.0,90926.0,0.3462411]
[1731833602171,0.02261253,90927.0,90926.0,0.3692411]
[1731833602451,0.02261253,90927.0,90926.0,0.53768033]
[1731833602667,0.02261253,90927.0,90926.0,0.67557604]
[1731833603122,0.0008556,90937.0,90936.0,0.31656271]
[1731833603355,0.19519876,90961.0,90960.0,0.13260855]
[1731833603600,0.19519876,90961.0,90960.0,0.04517519]
[1731833603831,0.02970708,90961.0,90960.0,0.15511319]
[1731833604070,0.02970708,90961.0,90960.0,0.14167101]
[1731833604300,0.02970708,90961.0,90960.0,0.2321459]
[1731833604531,0.02970708,90961.0,90960.0,0.2864459]
[1731833604758,0.02970708,90961.0,90960.0,0.209938]
[1731833605445,0.02970708,90961.0,90960.0,0.1]
[1731833605695,0.02970708,90961.0,90960.0,0.23789571]
[1731833605906,0.02970708,90961.0,90960.0,0.34783371]
[1731833606142,0.02970708,90961.0,90960.0,0.39143738]
[1731833606363,0.02970708,90961.0,90960.0,0.35581281]
[1731833606637,0.02970708,90961.0,90960.0,0.14887333]
[1731833606834,0.02970708,90961.0,90960.0,0.24783371]
[1731833607058,0.02970708,90961.0,90960.0,0.24145974]
[1731833608426,0.02587171,90961.0,90960.0,0.24145974]
[1731833608867,0.02587171,90961.0,90960.0,0.40911286]
[1731833609834,0.02587171,90961.0,90960.0,0.13152174]
[1731833610152,0.02620116,90961.0,90960.0,0.13152174]
[1731833610365,0.02587171,90961.0,90960.0,0.13152174]
[1731833611259,0.02587171,90961.0,90960.0,0.26674526]
[1731833611482,0.01587171,90961.0,90960.0,0.15680726]
[1731833611720,0.01587171,90961.0,90960.0,0.26674526]
[1731833612430,0.219829,90980.0,90961.0,0.023]
[1731833612695,0.219829,90980.0,90968.0,0.24782271]
[1731833612696,0.109918,90977.0,90968.0,0.24782271]
[1731833612912,0.109916,90978.0,90969.0,0.109926]
[1731833613142,0.109918,90977.0,90968.0,0.24782371]
[1731833613360,0.109918,90977.0,90969.0,0.00229063]
[1731833613799,0.0008558,90979.0,90969.0,0.11221763]
[1731833614012,0.0008558,90979.0,90971.0,0.109924]
[1731833614230,0.0008558,90979.0,90976.0,0.13789571]
[1731833614671,0.0008558,90979.0,90977.0,0.00228625]
[1731833615146,0.1107718,90979.0,90977.0,0.00228625]
[1731833615362,0.08614338,90985.0,90976.0,0.13789571]
[1731833615363,0.109916,90978.0,90976.0,0.13789571]
[1731833615600,0.10906255,90984.0,90978.0,0.00228552]
[1731833615814,0.109898,90993.0,90969.0,0.109927]
[1731833616030,0.109918,90977.0,90968.0,0.27541968]
[1731833616244,0.109918,90977.0,90970.0,0.00230096]
[1731833616498,0.10992,90976.0,90969.0,0.00229063]
[1731833616722,0.10992,90976.0,90971.0,0.00228917]
[1731833617164,0.10192,90976.0,90972.0,0.00228771]
[1731833617377,0.109916,90979.0,90969.0,0.109927]
[1731833617661,0.109918,90977.0,90973.0,0.00228698]
[1731833617884,0.109918,90977.0,90969.0,0.109927]
[1731833618132,0.109919,90976.0,90974.0,0.00228698]
[1731833618352,0.10992,90975.0,90968.0,0.16549168]
[1731833618823,0.10992,90975.0,90967.0,0.24782471]
[1731833619040,0.219809,90988.0,90967.0,0.24782471]
[1731833619041,0.21982,90984.0,90969.0,0.023]
[1731833619263,0.0779,90987.0,90975.0,0.24781571]
[1731833619477,0.0779,90987.0,90975.0,0.13789571]
[1731833619684,0.219804,90990.0,90979.0,0.109915]
[1731833619893,0.219804,90990.0,90976.0,0.219836]
[1731833619894,0.0478,90994.0,90981.0,0.109912]
[1731833620137,0.109906,90987.0,90979.0,0.109914]
[1731833620345,0.0478,90994.0,90983.0,0.13789571]
[1731833620565,0.0478,90994.0,90980.0,0.16549168]
[1731833620566,0.1099,90992.0,90980.0,0.38531768]
[1731833620782,0.0478,90994.0,90980.0,0.16549168]
[1731833621214,0.219787,90997.0,90988.0,0.109904]
[1731833621458,0.04229,91000.0,90980.0,0.16549168]
[1731833621694,0.109893,90998.0,90989.0,0.109902]
[1731833621915,0.109893,90997.0,90989.0,0.109902]
[1731833622381,0.109893,90997.0,90980.0,0.16549168]
[1731833622382,0.04229,91000.0,90994.0,0.109896]
[1731833622606,0.04229,91000.0,90992.0,0.109899]
[1731833622836,0.04229,91000.0,90993.0,0.109898]
[1731833623034,0.04229,91000.0,90987.0,0.219811]
[1731833623318,0.04229,91000.0,90990.0,0.16549168]
[1731833623528,0.04229,91000.0,90991.0,0.219801]
[1731833623761,0.04229,91000.0,90990.0,0.16549168]
[1731833623972,0.03714128,91000.0,90990.0,0.16549168]
[1731833624192,0.03714128,91000.0,90999.0,0.109891]
[1731833624683,0.03714128,91000.0,90996.0,0.13789571]
[1731833624909,0.03714128,91000.0,90999.0,0.109891]
[1731833625126,0.03714128,91000.0,90996.0,0.13789571]
[1731833625401,0.03714128,91000.0,90996.0,0.07750485]
[1731833625644,0.03714128,91000.0,90988.0,0.219809]
[1731833625872,0.03714128,91000.0,90992.0,0.1]
[1731833626104,0.03714128,91000.0,90994.0,0.219794]
[1731833626343,0.03714128,91000.0,90999.0,0.109891]
[1731833626587,0.03799738,91000.0,90999.0,0.1121465]
[1731833627737,0.03799738,91000.0,90999.0,0.0252555]
[1731833628423,0.03799738,91000.0,90999.0,0.06951052]
[1731833628890,0.03799738,91000.0,90999.0,0.0252555]
[1731833629128,0.05712586,91011.0,90999.0,0.16315121]
[1731833629355,0.2205945,91018.0,91000.0,0.023]
[1731833629356,0.0008565,91018.0,91000.0,0.023]
[1731833629590,0.109878,91010.0,91000.0,0.023]
[1731833629829,0.109876,91012.0,91002.0,0.16089571]
[1731833630041,0.0480565,91022.0,91001.0,0.16775884]
[1731833630042,0.0008565,91022.0,91021.0,0.023]
[1731833630291,0.0008565,91022.0,91021.0,0.16089571]
[1731833630506,0.0008565,91022.0,91021.0,0.27303842]
[1731833630738,0.0008565,91022.0,91021.0,0.16309258]
[1731833630964,0.0008565,91022.0,91021.0,0.38417124]
[1731833631175,0.0008565,91022.0,91021.0,0.38697437]
[1731833631392,0.0008565,91022.0,91021.0,0.40202078]
[1731833631635,0.0008565,91022.0,91021.0,0.53991649]
[1731833632331,0.00730296,91044.0,91039.0,0.13789571]
[1731833632549,0.109839,91042.0,91039.0,0.13789571]
[1731833632758,0.00730296,91044.0,91040.0,0.0021543]
[1731833632989,0.00730296,91044.0,91039.0,0.13789571]
[1731833633195,0.00730296,91044.0,91040.0,0.16549168]
[1731833633431,0.00730296,91044.0,91043.0,0.13789571]
[1731833633881,0.00730296,91044.0,91043.0,0.14004782]
[1731833634099,0.00730296,91044.0,91014.0,0.1]
[1731833634100,0.00730296,91044.0,91023.0,0.005]
[1731833634310,0.00730296,91044.0,91033.0,0.09644679]
[1731833634545,0.219676,91043.0,91033.0,0.09644376]
[1731833634755,0.00730296,91044.0,91040.0,0.07160313]
[1731833634970,0.00730296,91044.0,91040.0,0.00779471]
[1731833635194,0.00730296,91044.0,91040.0,1e-08]
[1731833635415,0.00730296,91044.0,91024.0,0.10906255]
[1731833635416,0.00730296,91044.0,91027.0,0.005]
[1731833635627,0.00730296,91044.0,91035.0,0.16549168]
[1731833635808,0.00730296,91044.0,91031.0,0.10906255]
[1731833635809,0.00730296,91044.0,91031.0,0.24695826]
[1731833636065,0.00730296,91044.0,91033.0,0.2197]
[1731833636295,0.00730296,91044.0,91032.0,0.329553]
[1731833636504,0.00730296,91044.0,91034.0,0.109848]
[1731833636968,0.219656,91052.0,91034.0,0.109848]
[1731833637162,0.219659,91050.0,91033.0,0.15484746]
[1731833637450,0.109834,91046.0,91033.0,0.26469646]
[1731833637661,0.109836,91045.0,91033.0,0.15484746]
[1731833637877,0.329488,91050.0,91033.0,0.15484746]
[1731833638115,0.005,91056.0,91033.0,0.26391001]
[1731833638356,0.219647,91055.0,91033.0,0.26391001]
[1731833638579,0.109839,91043.0,91033.0,0.26391001]
[1731833638810,0.219647,91055.0,91033.0,0.26391001]
[1731833639257,0.219649,91054.0,91033.0,0.26391001]
[1731833639507,0.005,91056.0,91034.0,0.16549168]
[1731833639731,0.109847,91036.0,91034.0,0.16549168]
[1731833639976,0.109843,91039.0,91034.0,0.16549168]
[1731833640186,0.219672,91045.0,91034.0,0.16549168]
[1731833640407,0.109841,91041.0,91031.0,0.13789571]
[1731833640636,0.219676,91043.0,91031.0,0.13789571]
[1731833640896,0.109839,91042.0,91034.0,0.16549168]
[1731833641170,0.439298,91054.0,91031.0,0.29118038]
[1731833641394,0.109844,91038.0,91031.0,0.18211783]
[1731833641636,0.23781,91066.0,91065.0,0.08761223]
[1731833641872,0.34687255,91066.0,91065.0,0.06565023]
[1731833642119,0.219682,91041.0,91033.0,0.16549168]
[1731833642362,0.109849,91034.0,91033.0,0.16549168]
[1731833642808,0.109857,91027.0,91026.0,0.00189814]
[1731833643035,0.219682,91041.0,91024.0,0.16549168]
[1731833643036,0.109859,91025.0,91024.0,0.16549168]
[1731833643495,0.219712,91029.0,91017.0,0.00189814]
[1731833643496,0.109868,91018.0,91017.0,0.00189814]
[1731833643726,0.132868,91018.0,91017.0,0.00189814]
[1731833643947,0.10987,91016.0,91015.0,0.00189814]
[1731833644185,0.10987,91016.0,91004.0,0.21034637]
[1731833644186,0.023,91012.0,91008.0,0.00189814]
[1731833644427,0.10988,91008.0,91007.0,0.00189814]
[1731833644674,0.109881,91007.0,91006.0,0.00189814]
[1731833645389,0.0826,91022.0,91000.0,0.00189814]
[1731833645663,0.109891,90999.0,90998.0,0.16549168]
[1731833645879,0.20906255,91021.0,90998.0,0.16549168]
[1731833645881,0.219731,91020.0,91010.0,0.00189814]
[1731833646069,0.0817,91041.0,90998.0,0.41244994]
[1731833646070,0.109882,91006.0,91005.0,0.00189814]
[1731833646334,0.20906255,91029.0,91005.0,0.00189814]
[1731833646335,0.219757,91010.0,91005.0,0.00189814]
[1731833646575,0.13033254,91006.0,91005.0,0.00189814]
[1731833646817,0.109886,91003.0,91002.0,0.00189814]
[1731833647046,0.219774,91003.0,90999.0,0.16738982]
[1731833647282,0.10189,91000.0,90999.0,0.16738982]
[1731833647514,0.109892,90998.0,90997.0,0.00189814]
[1731833647749,0.109892,90998.0,90992.0,0.001712]
[1731833647750,0.109894,90996.0,90995.0,0.00189814]
[1731833647955,0.2402459,90998.0,90996.0,0.00189814]
[1731833648202,0.109896,90995.0,90994.0,0.00189814]
[1731833648641,0.2402459,90998.0,90997.0,0.00189814]
[1731833648642,0.0204599,90998.0,90997.0,0.00189814]
[1731833649076,0.02046512,90998.0,90997.0,0.00189814]
[1731833649308,0.02046537,90998.0,90989.0,0.007]
[1731833649553,0.02046537,90998.0,90990.0,0.10906255]
[1731833649554,0.109899,90993.0,90990.0,0.10906255]
[1731833649788,0.219799,90993.0,90989.0,0.005]
[1731833650034,0.219799,90993.0,90987.0,0.002]
[1731833650266,0.219799,90993.0,90989.0,0.005]
[1731833650267,0.109901,90991.0,90989.0,0.005]
[1731833650479,0.109899,90993.0,90989.0,0.005]
[1731833650713,0.219792,90995.0,90989.0,0.005]
[1731833650931,0.16549168,91013.0,90989.0,0.002]
[1731833651175,0.109902,90990.0,90989.0,0.007]
[1731833651411,0.219772,91004.0,90989.0,0.007]
[1731833651626,0.109899,90992.0,90989.0,0.007]
[1731833651861,0.1099,90992.0,90989.0,0.007]
[1731833652097,0.10906255,91012.0,90989.0,0.007]
[1731833652309,0.109902,90990.0,90989.0,0.005]
[1731833652790,0.109902,90990.0,90982.0,0.16549168]
[1731833652791,0.109904,90989.0,90988.0,0.005]
[1731833653008,0.16549168,91010.0,90983.0,0.005]
[1731833653256,0.109911,90982.0,90981.0,0.04567575]
[1731833653468,0.10906255,91009.0,90974.0,0.111921]
[1731833653469,0.219818,90985.0,90983.0,0.16549168]
[1731833653676,0.109909,90984.0,90983.0,0.16549168]
[1731833653884,0.109912,90982.0,90978.0,0.005]
[1731833654335,0.109918,90977.0,90970.0,0.185625]
[1731833654554,0.000856,91000.0,90972.0,0.109923]
[1731833654555,0.082,90994.0,90972.0,0.109923]
[1731833654761,0.082,90994.0,90971.0,0.10906255]
[1731833654972,0.109916,90979.0,90971.0,0.10906255]
[1731833655210,0.109911,90983.0,90977.0,0.005]
[1731833655420,0.16549168,91014.0,90979.0,0.22483]
[1731833655421,0.16549168,91003.0,90979.0,0.22483]
[1731833655928,0.219773,91003.0,90980.0,0.16549168]
[1731833656148,0.109903,90990.0,90982.0,0.109911]
[1731833656371,0.219787,90997.0,90981.0,0.109912]
[1731833656592,0.109905,90988.0,90981.0,0.109912]
[1731833656818,0.109905,90987.0,90981.0,0.109912]
[1731833657037,0.109903,90990.0,90983.0,0.10991]
[1731833657478,0.109903,90989.0,90983.0,0.10991]
[1731833657945,0.219774,91003.0,90980.0,0.16549168]
[1731833658171,0.219774,91003.0,90982.0,0.18561]
[1731833658172,0.219801,90992.0,90982.0,0.18561]
[1731833658632,0.109903,90990.0,90982.0,0.0757]
[1731833659054,0.219792,90995.0,90982.0,0.295521]
[1731833659271,0.1099,90992.0,90982.0,0.0757]
[1731833659504,0.219795,90994.0,90982.0,0.0757]
[1731833659755,0.1099,90992.0,90987.0,0.109905]
[1731833659965,0.219774,91003.0,90982.0,0.0757]
[1731833659966,0.219774,91003.0,90984.0,0.00219787]
[1731833660181,0.219785,90998.0,90987.0,0.219809]
[1731833660405,0.109894,90997.0,90991.0,0.1099]
[1731833660618,0.219784,90999.0,90984.0,0.002]
[1731833661089,0.082,91012.0,90983.0,0.219821]
[1731833661321,0.082,91012.0,90982.0,0.23150758]
[1731833661322,0.109902,90990.0,90982.0,0.22950758]
[1731833661529,0.109899,90992.0,90986.0,0.109906]
[1731833661764,0.109901,90991.0,90983.0,0.219821]
[1731833661979,0.219785,90998.0,90983.0,0.219821]
[1731833662201,0.219785,90998.0,90984.0,0.219818]
[1731833662202,0.1019,90992.0,90984.0,0.219818]
[1731833662424,0.109902,90990.0,90984.0,0.109909]
[1731833662639,0.109899,90993.0,90983.0,0.219821]
[1731833662879,0.109899,90993.0,90986.0,0.109906]
[1731833663123,0.109891,90999.0,90984.0,0.109908]
[1731833663334,0.109901,90991.0,90984.0,0.109908]
[1731833663614,0.109901,90991.0,90982.0,0.22950758]
[1731833663615,0.219796,90994.0,90982.0,0.22950758]
[1731833663784,0.219787,90997.0,90983.0,0.219821]
[1731833664006,0.109901,90991.0,90985.0,0.109907]
[1731833664217,0.219789,90996.0,90982.0,0.22950758]
[1731833664424,0.109901,90991.0,90984.0,0.109909]
[1731833664705,0.109901,90991.0,90982.0,0.22950758]
[1731833664953,0.219785,90998.0,90990.0,0.109902]
[1731833664954,0.109895,90996.0,90990.0,0.109902]
[1731833665180,0.109895,90996.0,90983.0,0.219821]
[1731833665181,0.219765,91007.0,90988.0,0.002]
[1731833665409,0.09715242,90994.0,90988.0,0.002]
[1731833665621,0.219787,90997.0,90982.0,0.22950758]
[1731833665833,0.109896,90995.0,90988.0,0.002]
[1731833666065,0.109891,90999.0,90991.0,0.1099]
[1731833666354,0.05516737,90997.0,90990.0,0.0017112]
[1731833666568,0.21978,91000.0,90991.0,0.1099]
[1731833666784,0.21978,91000.0,90990.0,0.0017112]
[1731833667022,0.109891,90999.0,90992.0,0.109898]
[1731833667233,0.109892,90998.0,90992.0,0.109898]
[1731833667455,0.21978,91000.0,90991.0,0.002]
[1731833667456,0.109891,90999.0,90991.0,0.002]
[1731833667673,0.109891,90999.0,90992.0,0.109899]
[1731833667883,0.109894,90997.0,90991.0,0.002]
[1731833668132,0.219743,91015.0,90993.0,0.16549168]
[1731833668350,0.09824763,91020.0,90994.0,0.18886014]
[1731833668597,0.31286313,91023.0,91008.0,0.10988]
[1731833668598,0.109873,91014.0,91008.0,0.10988]
[1731833668834,0.109873,91014.0,90995.0,0.16549168]
[1731833668835,0.109878,91010.0,91004.0,0.109884]
[1731833669046,0.219727,91022.0,91005.0,0.27537468]
[1731833669267,0.0811,91029.0,90994.0,0.109896]
[1731833669268,0.10906255,91021.0,90994.0,0.109896]
[1731833669523,0.10906255,91021.0,91004.0,0.01091843]
[1731833669742,0.109877,91011.0,91004.0,0.12080343]
[1731833669954,0.1,91018.0,91005.0,0.219768]
[1731833670189,0.109873,91014.0,91006.0,0.219765]
[1731833670403,0.109873,91014.0,91007.0,0.10988]
[1731833670643,0.219716,91027.0,91005.0,0.0776]
[1731833670851,0.41387745,91031.0,91005.0,0.0776]
[1731833670852,0.219719,91025.0,91008.0,0.21976]
[1731833671100,0.005,91018.0,91009.0,0.00219733]
[1731833671368,0.005,91018.0,91004.0,0.01091843]
[1731833671369,0.109884,91005.0,91004.0,0.17641011]
[1731833672040,0.109884,91005.0,91004.0,0.01091843]
[1731833672260,0.109861,91024.0,91016.0,0.10987]
[1731833672495,0.16549168,91032.0,91007.0,0.002]
[1731833672704,0.109859,91026.0,91008.0,0.27455423]
[1731833672949,0.219686,91039.0,91018.0,0.109867]
[1731833673190,0.219686,91039.0,91008.0,0.27455423]
[1731833673191,0.10906255,91038.0,91013.0,0.002]
[1731833673401,0.109847,91036.0,91020.0,0.109865]
[1731833673617,0.109851,91032.0,91021.0,0.219729]
[1731833673840,0.16549168,91042.0,91016.0,0.005]
[1731833674054,0.37865826,91041.0,91018.0,0.16549168]
[1731833674270,0.109866,91020.0,91018.0,0.16549168]
[1731833674486,0.37865826,91041.0,91020.0,0.16549168]
[1731833674487,0.109864,91021.0,91020.0,0.16549168]
[1731833674721,0.549245,91034.0,91010.0,0.17549168]
[1731833674986,0.005,91035.0,91010.0,0.17549168]
[1731833674987,0.10906255,91033.0,91010.0,0.16549168]
[1731833675199,0.10906255,91033.0,91011.0,0.01091759]
[1731833675419,0.109872,91015.0,91011.0,0.01091759]
[1731833675629,0.10906255,91033.0,91011.0,0.01091759]
[1731833675834,0.109874,91014.0,91011.0,0.01091759]
[1731833676041,0.10906255,91033.0,91011.0,0.01091759]
[1731833676264,0.329553,91032.0,91011.0,0.01091759]
[1731833676469,0.005,91035.0,91011.0,0.01091759]
[1731833676470,0.219714,91028.0,91011.0,0.01091759]
[1731833676684,0.109869,91017.0,91011.0,0.12079359]
[1731833676891,0.10987,91017.0,91011.0,0.01091759]
[1731833677107,0.101872,91015.0,91011.0,0.01091759]
[1731833677337,0.109869,91018.0,91011.0,0.12079259]
[1731833677559,0.10987,91017.0,91011.0,0.12079259]
[1731833678006,0.10987,91017.0,91010.0,0.08596829]
[1731833678236,0.10987,91017.0,91011.0,0.119876]
[1731833678677,0.109871,91016.0,91011.0,0.01]
[1731833678992,0.109875,91012.0,91011.0,0.01]
[1731833679041,0.109875,91012.0,91006.0,0.109881]
[1731833679253,0.10906255,91031.0,90997.0,0.109893]
[1731833679254,0.109882,91006.0,90997.0,0.109893]
[1731833679463,0.219725,91023.0,90988.0,0.0808]
[1731833679464,0.0875,91020.0,90988.0,0.0808]
[1731833679673,0.109886,91003.0,91002.0,0.16549168]
[1731833680249,0.109896,90995.0,90992.0,0.16549168]
[1731833680464,0.109861,91024.0,91013.0,0.109874]
[1731833680633,0.109861,91024.0,91001.0,0.046]
[1731833680634,0.109865,91021.0,91009.0,0.109879]
[1731833680849,0.219715,91027.0,91014.0,0.109872]
[1731833681054,0.219715,91027.0,91015.0,0.109871]
[1731833681284,0.109862,91023.0,91014.0,0.219745]
[1731833681530,0.219715,91027.0,91015.0,0.109871]
[1731833681745,0.005,91037.0,91024.0,0.10986]
[1731833681746,0.219693,91037.0,91024.0,0.10986]
[1731833681967,0.219669,91046.0,91027.0,0.109857]
[1731833682176,0.219669,91046.0,91027.0,0.11705388]
[1731833682869,0.219669,91046.0,91027.0,0.114857]
[1731833683105,0.109835,91046.0,91027.0,0.11705385]
[1731833683318,0.219666,91048.0,91027.0,0.114857]
[1731833683524,0.109838,91043.0,91027.0,0.124857]
[1731833683728,0.219656,91052.0,91027.0,0.16456073]
[1731833683939,0.04415967,91042.0,91027.0,0.16456073]
[1731833684163,0.109828,91051.0,91027.0,0.28251498]
[1731833684363,0.16549168,91055.0,91027.0,0.28051498]
[1731833684570,0.16549168,91055.0,91027.0,0.28251498]
[1731833685025,0.109831,91049.0,91027.0,0.28251498]
[1731833685251,0.16549168,91055.0,91027.0,0.27362328]
[1731833685586,0.109828,91051.0,91027.0,0.29153568]
[1731833685691,0.109828,91051.0,91027.0,0.25183195]
[1731833685912,0.16549168,91055.0,91027.0,0.24280831]
[1731833686122,0.10983,91050.0,91027.0,0.24080831]
[1731833686566,0.16549168,91054.0,91027.0,0.26580831]
[1731833686816,0.16549168,91054.0,91027.0,0.27682435]
[1731833687072,0.16549168,91054.0,91027.0,0.36580831]
[1731833687291,0.109827,91052.0,91027.0,0.36580831]
[1731833687738,0.109827,91052.0,91027.0,0.39792357]